Cogmind - Beta 17 @@@ ROGUE MODE // 2026.06.23 @ 15:03:32 Player: Skysub Result: Destroyed by 7V-OMD(R) with Subdweller Machine Gun Performance ------------- Evolutions (0) 0 Regions Visited (2) 400 Robots Destroyed (13) 65 Value Destroyed (327) 327 Prototype IDs (1) 20 Alien Tech Used (0) 0 Bonus (5050) 5050 TOTAL SCORE: 5862 Bonus ------- Prayed to X0-1V1 5000 Major X0-1V1 Interference 50 Cogmind --------- Core Integrity 0/250 Matter 175/300 Energy 100/100 System Corruption 3% Temperature Cool (0) Movement Core (400) Ox7 Location -10/Subcaves Parts ------- > --- POWER (1) -------- (None) > --- PROPULSION (2) --- (None) > --- UTILITY (2) ------ Large Storage Unit X0-1V1's Piety Tracker > --- WEAPON (2) ------- Assault Rifle > --- INVENTORY (15) --- Light Ion Engine High-capacity Storage Unit Structural Scanner Signal Interpreter Improved Terrain Scanner Targeting Computer Light Armor Plating Light Armor Plating Light Armor Plating Light Assault Rifle Light Assault Rifle Grenade Launcher Mining Laser Peak State ------------ > --- POWER ------------ Ion Engine > --- PROPULSION ------- Light Treads Wheel > --- UTILITY ---------- Large Storage Unit X0-1V1's Piety Tracker > --- WEAPON ----------- Assault Rifle Light Assault Rifle > --- INVENTORY -------- Light Ion Engine Light Treads High-capacity Storage Unit Structural Scanner Signal Interpreter Improved Terrain Scanner Targeting Computer Light Armor Plating Light Armor Plating Light Armor Plating Assault Rifle Assault Rifle Light Assault Rifle Grenade Launcher Mining Laser [Rating: 20] Favorites ----------- Power Ion Engine Engine Ion Engine Propulsion Wheel Treads Light Treads Wheel Wheel Utility Large Storage Unit Device Structural Scanner Storage Large Storage Unit Weapon Assault Rifle Ballistic Gun Assault Rifle Launcher Grenade Launcher Build | -11 -10 -10 ------- Run | Yrd Mat Sub Slots Evolved . | . . . Power . | . . . Propulsion . | . . . Utility . | . . . Weapon . | . . . Parts Attached 20 | 7 11 2 Power 1 | 1 . . Engine 1 | 1 . . Core . | . . . Reactor . | . . . Propulsion 4 | 2 1 1 Treads 2 | . 1 1 Leg . | . . . Wheel 2 | 2 . . Hover . | . . . Flight . | . . . Utility 8 | 2 6 . Device 4 | 1 3 . Storage 4 | 1 3 . Processor . | . . . Hackware . | . . . Protection . | . . . Artifact . | . . . Weapon 7 | 2 4 1 Energy Gun . | . . . Energy Cannon . | . . . Ballistic Gun 6 | 2 3 1 Ballistic Cannon . | . . . Launcher 1 | . 1 . Special Weapon . | . . . Impact Weapon . | . . . Slashing Weapon . | . . . Piercing Weapon . | . . . Special Melee Weapon . | . . . Unidentified Prototypes 1 | . 1 . Parts Lost 7 | . 1 6 Power 1 | . . 1 Propulsion 3 | . . 3 Utility 1 | . 1 . Weapon 2 | . . 2 Highest Loss Streak 6 | . 1 6 To Critical Strikes 1 | . . 1 Average Backups 10 | 2 11 14 Power . | . 1 1 Propulsion 1 | 1 1 . Utility 4 | . 4 8 Weapon 3 | . 3 4 Tool/Special . | . . . Unused Backups 10 | . 2 8 Power 1 | . . 1 Propulsion . | . . . Utility 5 | . . 5 Weapon 4 | . 2 2 Tool/Special . | . . . Average Slot Usage (%) 98 | . 99 90 Engine 13 | . 14 11 Treads 9 | . 9 11 Wheel 17 | . 18 11 Device 13 | . 13 14 Storage 14 | . 14 14 Ballistic Gun 26 | . 26 25 Launcher 1 | . 1 . Peak Build Rating 20 | 7 20 20 Average Rating 8 | 5 8 18 On Entrance 9 | . 7 20 Avg Prop Armor Cover (%) 11 | . 11 11 Naked Turns . | . . . Heaviest Build 31 | 15 31 30 Greatest Support 26 | 26 26 10 Greatest Overweight (x) 3 | . 3 2 Average Overweight (x) 1 | . 1 2 Largest Inventory Capacity 20 | 8 20 15 Average Capacity 13 | 7 13 15 Most Carried 15 | 5 15 15 Average Carried 10 | 2 11 14 Final Capacity 15 | 8 15 15 Final Carried 15 | 5 15 13 Class Distribution -------------------- 100% | Mutant Dominant Class ---------------- Mutant | -10/Materials Mutant | -10/Subcaves Resources | -11 -10 -10 ----------- Run | Yrd Mat Sub Matter Collected 543 | 293 221 29 Remotely . | . . . Salvage Created 422 | 70 287 65 Parts 23 | 5 16 2 Haulers Intercepted . | . . . Recyclers Shooed . | . . . Parts Field Recycled . | . . . Retrieved Matter . | . . . Parts Self-Destructed . | . . . Prevented . | . . . Parts Restored . | . . . Kills | -11 -10 -10 ------- Run | Yrd Mat Sub Combat Hostiles Destroyed 10 | . 8 2 Guns 10 | . 8 2 Classes Destroyed 6 | 2 3 1 Worker 1 | . 1 . Tunneler 1 | 1 . . Recycler 1 | 1 . . Swarmer 3 | . 3 . Grunt 5 | . 5 . Subdweller 2 | . . 2 Best Kill Streak 4 | 2 4 2 Combat Bots Only 4 | . 4 2 Max Kills in Single Turn 1 | 1 1 1 Gunslinging . | . . . Exploded . | . . . Melee . | . . . Uniques/NPCs Destroyed . | . . . Combat | -11 -10 -10 -------- Run | Yrd Mat Sub Hostile Shots Fired 90 | . 52 38 Missed 25 | . 14 11 Hits 65 | . 38 27 Projectile 65 | . 38 27 Critical Strikes 1 | . . 1 Damage Taken 1182 | . 431 751 Core 259 | . 60 199 Absorbed by Shields . | . . . Core Remaining (%) 100 | 100 . . Volleys Fired 48 | 4 30 14 Largest 2 | 2 2 2 Hottest 40 | 40 40 40 Shots Fired 91 | 8 61 22 Gun 90 | 8 60 22 Cannon . | . . . Launcher 1 | . 1 . Special . | . . . Kinetic 90 | 8 60 22 Thermal . | . . . Explosive 1 | . 1 . Electromagnetic . | . . . Robot Hit Streak 17 | 3 17 9 Robot Miss Streak 5 | 5 3 1 Penetration Max . | . . . Secondary Targets 2 | . 1 1 Max Gunslinging Chain 1 | . 1 1 Shots Hit Robots 63 | 3 42 18 Core Hits 20 | 3 14 3 Critical Kills . | . . . Critical Parts Destroyed . | . . . Critical Strikes . | . . . Melee Attacks . | . . . Impact . | . . . Slashing . | . . . Piercing . | . . . Sneak Attacks . | . . . Combat Hostiles . | . . . Follow-up Attacks . | . . . Damage Inflicted 1141 | 53 537 551 Guns 810 | 53 537 220 Cannons 138 | . . 138 Explosions 193 | . . 193 Melee . | . . . Ramming . | . . . Kinetic 810 | 53 537 220 Thermal 331 | . . 331 Explosive . | . . . Electromagnetic . | . . . Impact . | . . . Slashing . | . . . Piercing . | . . . Highest Corruption 3 | . 3 3 Average Corruption 2 | . 2 3 Corruption Purged . | . . . Corruption Blocked . | . . . Effects 10 | . 8 2 Message Errors 3 | . 3 . Matter Fused 2 | . 1 1 Energy Discharges 2 | . 2 . Data Loss (minor) 1 | . . 1 Misfires 2 | . 2 . Overload Shots . | . . . Overflow Damage 78 | . . 78 Projectiles 78 | . . 78 Explosions . | . . . Melee . | . . . Knockbacks . | . . . Impact . | . . . Kinetic . | . . . Secondary . | . . . Self-Inflicted Damage 112 | . 4 108 Shots 2 | . 1 1 Rammed 1 | . 1 . Targets Rammed 1 | . 1 . Kicked . | . . . Crushed . | . . . Highest Temperature 16 | . 16 . Average Temperature 6 | . 6 . Received Heat Transfer 300 | . 201 99 Siege Activations . | . . . Martial Activations . | . . . Shielding Activations . | . . . Robots Disrupted . | . . . Combat Hostiles . | . . . Robots Corrupted . | . . . Combat Hostiles . | . . . Parts Fried . | . . . Impact Corruptions . | . . . Robots Melted . | . . . Combat Hostiles . | . . . Parts Melted . | . . . Heat Transferred 210 | . . 210 Parts Sabotaged . | . . . Parts Stolen . | . . . Parts Stripped . | . . . Power Chain Reactions . | . . . Alert | -11 -10 -10 ------- Run | Yrd Mat Sub Maximum Alert Level . | . . . Low Security (%) 100 | 100 100 . Level 1 . | . . . Level 2 . | . . . Level 3 . | . . . Level 4 . | . . . Level 5 . | . . . High Security . | . . . Max Security . | . . . Peak Influence 166 | 10 166 . Initial . | . . . Average 68 | 2 75 . Influence Increases 345 | 10 335 . Destroy 0b10 Robot/C 160 | . 160 . Destroy 0b10 Robot/NC 15 | 10 5 . Destroy Leader 40 | . 40 . Successful Hack 18 | . 18 . Select Force Hacks 30 | . 30 . Disable Machine 30 | . 30 . Destroy Structure 7 | . 7 . Lose Combat Pursuer 45 | . 45 . Influence Decreases 345 | 10 291 44 Entered New Map 22 | . . 22 Time Decay 303 | 10 281 12 Lost Part 20 | . 10 10 Squads Dispatched 2 | . 2 . Investigation 1 | . 1 . Extermination . | . . . Reinforcement 1 | . 1 . Assault . | . . . Garrison . | . . . Intercept . | . . . Searches Triggered . | . . . Construction Impeded . | . . . Haulers Reinforced . | . . . Active Scanning Responses . | . . . Cargo Convoy Interrupts . | . . . Stealth | -11 -10 -10 --------- Run | Yrd Mat Sub Distress Signals . | . . . Communications Jammed . | . . . Distress Signals . | . . . Times Spotted 23 | . 20 3 Peak Tracking Total 5 | . 5 3 Tactical Retreats 2 | . 2 . Traps | -11 -10 -10 ------- Run | Yrd Mat Sub Traps Triggered 2 | . 2 . Indirectly . | . . . Trap Hack Attempts . | . . . Triggered . | . . . Disarmed . | . . . Reprogrammed . | . . . Reused . | . . . Traps Extracted . | . . . Installed . | . . . Triggered . | . . . Machines | -11 -10 -10 ---------- Run | Yrd Mat Sub Machines Disabled 2 | . 2 . Max in Single Turn 2 | . 2 . Machines Repaired . | . . . Machines Dismantled . | . . . Machines Sabotaged . | . . . Overloaded Fab Kills . | . . . Hacking | -11 -10 -10 --------- Run | Yrd Mat Sub Machines Accessed 7 | . 7 . Terminals 6 | . 6 . Fabricators . | . . . Repair Stations . | . . . Recycling Units 1 | . 1 . Scanalyzers . | . . . Garrison Access . | . . . Total Hacks 17 | . 17 . Successful 11 | . 11 . Failed 6 | . 6 . Catastrophic 2 | . 2 . Database Lockouts . | . . . Manual 16 | . 16 . Terminals 14 | . 14 . Fabricators . | . . . Repair Stations . | . . . Recycling Units 3 | . 3 . Scanalyzers . | . . . Garrison Access . | . . . Terminal Hacks 2 | . 2 . Branch Access Points 1 | . 1 . Zone Layout 1 | . 1 . Fabricator Hacks . | . . . Repair Station Hacks . | . . . Recycling Unit Hacks 1 | . 1 . Report Inventory 1 | . 1 . Scanalyzer . | . . . Garrison Access Hacks . | . . . Unauthorized Hacks 8 | . 8 . Terminals 7 | . 7 . Botnet 3 | . 3 . Skim 4 | . 4 . Fabricators . | . . . Repair Stations . | . . . Recycling Units 1 | . 1 . Tunnel 1 | . 1 . Scanalyzers . | . . . Garrison Access . | . . . Data Cores Recovered . | . . . Used . | . . . Hacking Detections 6 | . 6 . Full Trace Events . | . . . Feedback Events . | . . . Feedback Blocked . | . . . Robot Schematics Acquired . | . . . Robots Built . | . . . Authchips . | . . . Time . | . . . Total Robot Build Rating . | . . . Part Schematics Acquired . | . . . Parts Built . | . . . Authchips . | . . . Time . | . . . Total Part Build Rating . | . . . Part Studies Acquired . | . . . Parts Repaired . | . . . Time . | . . . Parts Recycled . | . . . Recycled Matter . | . . . Retrieved Matter . | . . . Retrieved Components . | . . . Parts Scanalyzed . | . . . Part Schematics Acquired . | . . . Parts Damaged . | . . . Bothacking | -11 -10 -10 ------------ Run | Yrd Mat Sub Used RIF Installer . | . . . Robots Hacked . | . . . Non-combat . | . . . Combat . | . . . Robot Hacks Applied . | . . . Relay Couplers Released . | . . . Fabnet Peak Effective % . | . . . Robots Rewired . | . . . Allies Hacked . | . . . Hacks Repelled . | . . . Allies | -11 -10 -10 -------- Run | Yrd Mat Sub Total Allies . | . . . Largest Group . | . . . Highest-Rated Group . | . . . Highest-Rated Ally . | . . . Total Orders . | . . . Ally Attacks . | . . . Total Damage . | . . . Kills . | . . . Allies Corrupted . | . . . Allies Melted . | . . . X0-1V1 Amusement Gains 65 | . 15 50 Good Acts 1 | . . 1 Bad Acts 2 | . 1 1 Intel | -11 -10 -10 ------- Run | Yrd Mat Sub Active Infowar (turns) 724 | 8 716 . Terrain 89 | . 89 . Structural 569 | . 569 . Seismic 66 | 8 58 . Robot Analysis Total . | . . . Derelict Logs Recovered . | . . . Drone Launches . | . . . Drone Recoveries . | . . . Exploration | -11 -10 -10 ------------- Run | Yrd Mat Sub Turns Passed 876 | 80 739 57 Spaces Moved 594 | 59 520 15 Core 2 | 2 . . Treads 1 | . 1 . Legs . | . . . Wheels 591 | 57 519 15 Hover . | . . . Flight . | . . . Fastest Speed 50 | 50 90 110 Average Speed 105 | 88 106 110 Slowest Speed 240 | 90 240 110 Overloaded Moves . | . . . Propulsion Burnouts . | . . . Robots Hopped . | . . . Potential Cave-ins . | . . . Cave-ins Triggered . | . . . Exploration Rate (%) 30 | 3 88 1 Regions Visited 2 Branch Regions 1 Pre-discovered Areas 1 | . 1 . Known Exits Taken . | . . . Unknown Exits Taken 2 | 1 1 . Scrap Searched . | . . . Spaces Dug 5 | . 5 . Terrain Destroyed 20 | . 5 15 Melee . | . . . Projectile . | . . . AOE 20 | . 5 15 Terrain Rammed . | . . . Walls Destroyed . | . . . Machines Disabled . | . . . Actions | -11 -10 -10 --------- Run | Yrd Mat Sub Total 750 | 75 641 34 Wait 61 | . 59 2 Move 592 | 58 519 15 Hop . | . . . Pick Up 19 | 6 13 . Fast Attach 6 | 6 . . Attach 4 | 1 1 2 Detach . | . . . Swap 12 | . 11 1 Drop 7 | . 7 . Fire 48 | 4 30 14 Melee . | . . . Ram . | . . . Kick . | . . . Crush 1 | . 1 . Escape Stasis . | . . . Rewire . | . . . Trap . | . . . Miscellaneous . | . . . Route ------- -11/Scrapyard -10/Materials (discovered 5 exits: [*Mat x2] / *Min x2 / [*Sub]) -10/Subcaves History --------- Turn | Location | Event 9 | -11/Scrapyard | Discovered new exit (range 16) 81 | -11/Scrapyard | Entered Materials 225 | -10/Materials | Discovered new exit (range 16) 267 | -10/Materials | Discovered new exit (range 7) 322 | -10/Materials | Build established: Mutant 414 | -10/Materials | Discovered new exit (range 3) 604 | -10/Materials | Discovered new exit (range 10) 681 | -10/Materials | Identified exit to Mines 767 | -10/Materials | Discovered new exit (range 6) 801 | -10/Materials | Prayed at D.C.S.S. Altar Unit 820 | -10/Materials | Entered Subcaves 821 | -10/Subcaves | Approached by a straggling Scientist 857 | -10/Subcaves | Core integrity fell below 50% 872 | -10/Subcaves | Core integrity fell below 20% 877 | -10/Subcaves | Destroyed by 7V-OMD(R) with Subdweller Machine Gun Last Messages --------------- 00839_ Acquired 29 matter. 00844_ Lgt. Treads destroyed. 00845_ System corrupted: Matter fused (-7). 00848_ Subatomizers dissect the Wheel. 00851_ X0-1V1 uses you as a vessel of destruction. 00851_ Destroyed Sub. Monowheel. 00851_ Destroyed Scrap Shield. 00852_ 7V-OMD(R): "HIDIE!" 00856_ OU-TN7(R) destroyed. 00856_ Switching to secondary target: L5-IDE(R). 00860_ Ion Engine destroyed. 00861_ Subatomizers dissect the Wheel. 00862_ Assault Rifle destroyed. 00862_ Wheel destroyed. 00863_ Lgt. Treads destroyed. 00865_ Critical hit (Destroy). 00865_ Assault Rifle destroyed. 00866_ L5-IDE(R) destroyed. 00867_ System corrupted: Component data lost. 00877_ X0-1V1 chuckles heartily! Map ----- +----------------------------------------------------+ | ????????????????????????????????????????????? | | ????????????????????????????????????????????? | | ????????????????????????????????????????????? | | ????????????????????????????????????????????? | | ????????????????????????????????????????????? | | ????????????????????????????????????????????? | | ????????????????????????????????????????????? | | ????????????????????????????????????????????? | | ????????????????????????????????????????????? | | ????????????????????????????????????????????? | | ????????????????????????????????????????????? | | ????????????????????????????????????????????? | | ????????????????????????????????????????????? | | ????????????????????????????????????????????? | | ????????????????????????????????????????????? | | ????????????????????????????????????????????? | | ????????????????????????????????????????????? | | ????????????????####????????????????????????? | | ???????????????## ####?????????????????????? | | ??????????????## ####??????????????????? | | ??????????????# # ???????????????????? | | ??????????????# ;##??????????????????? | | ??????????????# ; #??????????????????? | | ??????????????# ;;& ; #??????????????????? | | ??????????????## ;*%R; #??????????????????? | | ???????????????## &%@!;; #??????????????????? | | ???????????????# ;;##??????????????????? | | ???????????????## #???????????????????? | | ????????????????# #??????????????????? | | ????????????????# ### #??????????????????? | | ????????????????# #??# ?????????????????? | | ????????????????# #???# ????????????????? | | ????????????????### ????## ##???????????????? | | ??????????????????? ??????#;????????????????? | | ??????????????????? ???????# ???????????????? | | ??????????????????? ????????#;??????????????? | | ??????????????????? ?????????##?????????????? | | ??????????????????? ????????????????????????? | | ??????????????????? ????????????????????????? | | ??????????????????? ????????????????????????? | | ????????????????????????????????????????????? | | ????????????????????????????????????????????? | | ????????????????????????????????????????????? | | ????????????????????????????????????????????? | | ????????????????????????????????????????????? | | ????????????????????????????????????????????? | | ????????????????????????????????????????????? | | ????????????????????????????????????????????? | | ????????????????????????????????????????????? | | ????????????????????????????????????????????? | +----------------------------------------------------+ Best States ------------- Heat Dissipation 25 Energy Generation 10 Energy Capacity 250 Matter Stores 300 Matter Capacity 300 Sight Range 16 Terrain Scan Range 16 Terrain Scan Density 10 Evasion (%) 42 Recoil Reduction 1 Item Schematics ----------------- None Robot Schematics ------------------ None Fabricated ------------ Nothing Repaired ---------- Nothing Studied --------- None Alien Tech Used ----------------- None Achievements -------------- Chaos Is Inevitable Challenges ------------ None Game ------ Seed SuspensionContainmentSpear Manual? 0 Play Time 00:12:14 Cumulative 320.6 hours Start 2026.06.23 @ 14:48:45 End 2026.06.23 @ 15:03:32 Sessions 1 Manual Loads 0 Difficulty Rogue Special Mode None Game No. 386 Rogue 386 Adventurer 0 Explorer 0 Win Type - Total 21 Types 13/0/3/1/1/0/1/1/0/1 Lore% 78 Gallery% 74 Achievement% 64 Wizard Run 0 Options --------- Layout 1 ASCII 0 Keyboard 1 Movement Numpad Keybinds 0 Fullscreen 2 Font 32/SmallcapsGlow Map View 77x35 Zoom Use 0% Tactical HUD 1 Map Filters NONE Filters NONE Steam 1 RUN: f8a3f7c1-d25b-4118-8410-afb9fa0aa1b1